[Event "*** Titled Tuesday Blitz"]
[Site "Chess.com"]
[Date "2019.09.03"]
[Round "7"]
[White "rikyshi"]
[Black "Mr_Penings"]
[Result "0-1"]
[WhiteElo "2225"]
[BlackElo "2511"]
[TimeControl "180+2"]
[EndTime "16:35:50 PDT"]
[Termination "Mr_Penings won by checkmate"]

1. d4 {[%clk 0:03:01.9]} 1... Nf6 {[%clk 0:03:00]} 2. Nc3 {[%clk 0:02:57.7]}
2... d5 {[%clk 0:02:58.1]} 3. Bf4 {[%clk 0:02:58.1]} 3... c6 {[%clk 0:02:55.8]}
4. e3 {[%clk 0:02:58.8]} 4... g6 {[%clk 0:02:56]} 5. h4 {[%clk 0:02:59.3]} 5...
h5 {[%clk 0:02:56]} 6. Nf3 {[%clk 0:03:00.1]} 6... Bg7 {[%clk 0:02:51.8]} 7. Qd2
{[%clk 0:02:58.6]} 7... b5 {[%clk 0:02:36.7]} 8. Ng5 {[%clk 0:02:48.6]} 8...
Nbd7 {[%clk 0:02:30]} 9. a3 {[%clk 0:02:44.8]} 9... Nb6 {[%clk 0:02:28.6]} 10.
Bd3 {[%clk 0:02:37.2]} 10... a5 {[%clk 0:02:17.7]} 11. e4 {[%clk 0:02:22.6]}
11... b4 {[%clk 0:02:08.8]} 12. axb4 {[%clk 0:02:23.1]} 12... axb4 {[%clk
0:02:09.6]} 13. Rxa8 {[%clk 0:02:14]} 13... bxc3 {[%clk 0:02:05.4]} 14. bxc3
{[%clk 0:02:14.7]} 14... Nxa8 {[%clk 0:02:06.2]} 15. e5 {[%clk 0:02:16.2]} 15...
Ne4 {[%clk 0:01:59.3]} 16. Nxe4 {[%clk 0:02:12.5]} 16... dxe4 {[%clk 0:02:01.2]}
17. Bxe4 {[%clk 0:02:14.4]} 17... Nb6 {[%clk 0:02:01.8]} 18. Bxc6+ {[%clk
0:02:14.9]} 18... Kf8 {[%clk 0:01:59]} 19. O-O {[%clk 0:02:06.1]} 19... Be6
{[%clk 0:01:50.4]} 20. Bg5 {[%clk 0:01:48.9]} 20... f6 {[%clk 0:01:38.2]} 21.
exf6 {[%clk 0:01:49.2]} 21... exf6 {[%clk 0:01:37]} 22. Bf4 {[%clk 0:01:33.2]}
22... Nd5 {[%clk 0:01:38]} 23. Ra1 {[%clk 0:01:28.8]} 23... Qb6 {[%clk
0:01:16.5]} 24. Ba4 {[%clk 0:00:31.1]} 24... Kg8 {[%clk 0:01:13]} 25. Bb3 {[%clk
0:00:31.7]} 25... Kh7 {[%clk 0:01:13.5]} 26. Bg3 {[%clk 0:00:31.2]} 26... Bh6
{[%clk 0:01:10.3]} 27. Qe1 {[%clk 0:00:30.9]} 27... Bf7 {[%clk 0:01:04.9]} 28.
c4 {[%clk 0:00:30.1]} 28... Re8 {[%clk 0:01:05.8]} 29. Qf1 {[%clk 0:00:21.3]}
29... Nc3 {[%clk 0:01:05.1]} 30. c5 {[%clk 0:00:22.5]} 30... Qb7 {[%clk
0:00:56.8]} 31. Bxf7 {[%clk 0:00:22.1]} 31... Qxf7 {[%clk 0:00:57.7]} 32. Re1
{[%clk 0:00:13.7]} 32... Bd2 {[%clk 0:00:47.9]} 33. Rxe8 {[%clk 0:00:14]} 33...
Qxe8 {[%clk 0:00:49.8]} 34. Qd3 {[%clk 0:00:14.2]} 34... Qe1+ {[%clk 0:00:47.9]}
35. Kh2 {[%clk 0:00:15.2]} 35... Ne2 {[%clk 0:00:48.8]} 36. Kh3 {[%clk
0:00:03.8]} 36... Qh1+ {[%clk 0:00:48.1]} 37. Bh2 {[%clk 0:00:05.3]} 37... Nf4+
{[%clk 0:00:49.5]} 38. Kg3 {[%clk 0:00:06.8]} 38... Qxg2# {[%clk 0:00:48.7]} 0-1

[Event "*** Titled Tuesday Blitz"]
[Site "Chess.com"]
[Date "2019.09.03"]
[Round "7"]
[White "joshdaruca"]
[Black "matiss90"]
[Result "1-0"]
[WhiteElo "2731"]
[BlackElo "2542"]
[TimeControl "180+2"]
[EndTime "16:36:17 PDT"]
[Termination "joshdaruca won by checkmate"]

1. Nf3 {[%clk 0:03:01.9]} 1... Nf6 {[%clk 0:03:01]} 2. g3 {[%clk 0:03:03.8]}
2... g6 {[%clk 0:03:02.3]} 3. Bg2 {[%clk 0:03:05.7]} 3... Bg7 {[%clk 0:03:04.2]}
4. O-O {[%clk 0:03:07.2]} 4... O-O {[%clk 0:03:06]} 5. c4 {[%clk 0:03:09.1]}
5... d6 {[%clk 0:03:07.5]} 6. d4 {[%clk 0:03:09.5]} 6... a6 {[%clk 0:03:08.7]}
7. Nc3 {[%clk 0:03:10.1]} 7... Nc6 {[%clk 0:03:10.1]} 8. d5 {[%clk 0:03:08.5]}
8... Na5 {[%clk 0:03:11.1]} 9. Nd2 {[%clk 0:03:10.1]} 9... c5 {[%clk 0:03:12.4]}
10. Qc2 {[%clk 0:03:10.5]} 10... Rb8 {[%clk 0:03:13.6]} 11. a4 {[%clk
0:03:11.3]} 11... e5 {[%clk 0:03:06.5]} 12. b3 {[%clk 0:02:39.7]} 12... Bf5
{[%clk 0:03:00.4]} 13. e4 {[%clk 0:02:40.2]} 13... Bd7 {[%clk 0:03:01.4]} 14.
Bb2 {[%clk 0:02:36.4]} 14... Qc8 {[%clk 0:03:02.4]} 15. Nd1 {[%clk 0:02:32.3]}
15... Bh3 {[%clk 0:02:59]} 16. Ne3 {[%clk 0:02:32.8]} 16... Bxg2 {[%clk
0:02:59.6]} 17. Kxg2 {[%clk 0:02:34.7]} 17... Ng4 {[%clk 0:02:47.8]} 18. Nxg4
{[%clk 0:02:30]} 18... Qxg4 {[%clk 0:02:48.5]} 19. Bc3 {[%clk 0:02:30.1]} 19...
b6 {[%clk 0:02:49]} 20. h3 {[%clk 0:02:04.3]} 20... Qd7 {[%clk 0:02:47.9]} 21.
f4 {[%clk 0:01:56.6]} 21... f5 {[%clk 0:02:41.1]} 22. fxe5 {[%clk 0:01:55.7]}
22... dxe5 {[%clk 0:02:41.5]} 23. Nf3 {[%clk 0:01:47.5]} 23... Rbe8 {[%clk
0:02:36.2]} 24. Ng5 {[%clk 0:01:47.1]} 24... f4 {[%clk 0:01:34.1]} 25. Ne6
{[%clk 0:01:44.8]} 25... Rf7 {[%clk 0:01:23.5]} 26. gxf4 {[%clk 0:01:42.2]}
26... exf4 {[%clk 0:01:09.3]} 27. Bxg7 {[%clk 0:01:36.1]} 27... Rxg7 {[%clk
0:01:10.3]} 28. Nxg7 {[%clk 0:01:37.1]} 28... Qxg7 {[%clk 0:01:11.2]} 29. Rae1
{[%clk 0:01:34.9]} 29... Qe5 {[%clk 0:01:09.7]} 30. h4 {[%clk 0:01:25.1]} 30...
Re7 {[%clk 0:00:45.1]} 31. Rf3 {[%clk 0:01:22.3]} 31... g5 {[%clk 0:00:41.8]}
32. hxg5 {[%clk 0:01:22.1]} 32... Rg7 {[%clk 0:00:42.6]} 33. Kh1 {[%clk
0:00:57.3]} 33... Qxg5 {[%clk 0:00:33]} 34. Qh2 {[%clk 0:00:56.5]} 34... Nb7
{[%clk 0:00:12.7]} 35. Rg1 {[%clk 0:00:51.4]} 35... Qe5 {[%clk 0:00:09]} 36.
Rxg7+ {[%clk 0:00:51.7]} 36... Kxg7 {[%clk 0:00:10.2]} 37. Qxf4 {[%clk
0:00:53.1]} 37... Qh5+ {[%clk 0:00:10.4]} 38. Kg2 {[%clk 0:00:54]} 38... Nd8
{[%clk 0:00:03.9]} 39. Qf6+ {[%clk 0:00:49.7]} 39... Kg8 {[%clk 0:00:04.7]} 40.
Qf8# {[%clk 0:00:51.3]} 1-0

[Event "*** Titled Tuesday Blitz"]
[Site "Chess.com"]
[Date "2019.09.03"]
[Round "7"]
[White "SanchezKelvin"]
[Black "IMRosen"]
[Result "1/2-1/2"]
[WhiteElo "2423"]
[BlackElo "2583"]
[TimeControl "180+2"]
[EndTime "16:36:19 PDT"]
[Termination "Game drawn by stalemate"]

1. d4 {[%clk 0:03:01.5]} 1... Nf6 {[%clk 0:03:00.1]} 2. c4 {[%clk 0:03:02.6]}
2... e5 {[%clk 0:03:00.7]} 3. dxe5 {[%clk 0:03:02.8]} 3... Ng4 {[%clk
0:03:01.6]} 4. e4 {[%clk 0:03:03.7]} 4... Nxe5 {[%clk 0:03:01.6]} 5. f4 {[%clk
0:03:04.6]} 5... Nec6 {[%clk 0:03:03]} 6. Be3 {[%clk 0:03:05.6]} 6... Na6 {[%clk
0:03:02.8]} 7. Nf3 {[%clk 0:03:05.1]} 7... Bc5 {[%clk 0:03:03]} 8. Qd2 {[%clk
0:03:04.2]} 8... O-O {[%clk 0:02:58.1]} 9. Nc3 {[%clk 0:03:04.6]} 9... Re8
{[%clk 0:02:58.7]} 10. O-O-O {[%clk 0:03:04.7]} 10... d6 {[%clk 0:02:37.1]} 11.
Bd3 {[%clk 0:02:57.7]} 11... Bxe3 {[%clk 0:02:35.3]} 12. Qxe3 {[%clk 0:02:58.4]}
12... Nc5 {[%clk 0:02:37]} 13. Bc2 {[%clk 0:02:59.1]} 13... Bg4 {[%clk
0:02:28.3]} 14. h3 {[%clk 0:02:57.2]} 14... Bxf3 {[%clk 0:02:27.9]} 15. gxf3
{[%clk 0:02:59.1]} 15... Nb4 {[%clk 0:02:06.2]} 16. Rhg1 {[%clk 0:02:45.6]}
16... Qh4 {[%clk 0:02:05.4]} 17. Nd5 {[%clk 0:02:33.6]} 17... Nxd5 {[%clk
0:02:01]} 18. Rxd5 {[%clk 0:02:31.2]} 18... Ne6 {[%clk 0:01:50.8]} 19. f5 {[%clk
0:02:20.9]} 19... Qf4 {[%clk 0:01:47.8]} 20. Kd2 {[%clk 0:02:04.6]} 20... Qxe3+
{[%clk 0:01:28]} 21. Kxe3 {[%clk 0:02:06.5]} 21... Nc5 {[%clk 0:01:28.1]} 22. b4
{[%clk 0:02:05.3]} 22... Nd7 {[%clk 0:01:22.3]} 23. Ba4 {[%clk 0:02:02.4]} 23...
Nb6 {[%clk 0:01:14.1]} 24. Bxe8 {[%clk 0:01:56.9]} 24... Nxd5+ {[%clk
0:01:15.2]} 25. cxd5 {[%clk 0:01:58.2]} 25... Rxe8 {[%clk 0:01:16.8]} 26. Rc1
{[%clk 0:01:59.2]} 26... Re7 {[%clk 0:01:14]} 27. b5 {[%clk 0:01:50.2]} 27...
Kf8 {[%clk 0:01:12.5]} 28. Rc3 {[%clk 0:01:50]} 28... b6 {[%clk 0:00:29.9]} 29.
Ra3 {[%clk 0:01:48.9]} 29... a5 {[%clk 0:00:28.4]} 30. bxa6 {[%clk 0:01:48.8]}
30... Re8 {[%clk 0:00:30]} 31. Rc3 {[%clk 0:01:49]} 31... Ra8 {[%clk 0:00:18.3]}
32. Ra3 {[%clk 0:01:49.8]} 32... Ke8 {[%clk 0:00:15.7]} 33. Kd4 {[%clk
0:01:50.9]} 33... Kd7 {[%clk 0:00:15.1]} 34. Kc4 {[%clk 0:01:51.9]} 34... c6
{[%clk 0:00:11.7]} 35. dxc6+ {[%clk 0:01:50.8]} 35... Kxc6 {[%clk 0:00:13.6]}
36. Kb4 {[%clk 0:01:52.2]} 36... b5 {[%clk 0:00:08.9]} 37. Ra5 {[%clk
0:01:52.6]} 37... f6 {[%clk 0:00:06.3]} 38. a7 {[%clk 0:01:44.5]} 38... g6
{[%clk 0:00:05.2]} 39. fxg6 {[%clk 0:01:42.5]} 39... hxg6 {[%clk 0:00:07.1]} 40.
Ra6+ {[%clk 0:01:42.5]} 40... Kb7 {[%clk 0:00:08.2]} 41. Kxb5 {[%clk 0:01:43]}
41... f5 {[%clk 0:00:08.6]} 42. exf5 {[%clk 0:01:43.3]} 42... gxf5 {[%clk
0:00:10.5]} 43. Rxd6 {[%clk 0:01:43.3]} 43... Rh8 {[%clk 0:00:11.7]} 44. Rd7+
{[%clk 0:01:42.1]} 44... Ka8 {[%clk 0:00:12.7]} 45. f4 {[%clk 0:01:36.5]} 45...
Rc8 {[%clk 0:00:08.8]} 46. Kb6 {[%clk 0:01:33.2]} 46... Rc6+ {[%clk 0:00:07.8]}
47. Kb5 {[%clk 0:01:32]} 47... Rc5+ {[%clk 0:00:08.9]} 48. Kb4 {[%clk
0:01:33.4]} 48... Rc4+ {[%clk 0:00:09.9]} 49. Kb3 {[%clk 0:01:34.9]} 49... Rc3+
{[%clk 0:00:11.1]} 50. Ka4 {[%clk 0:01:35.4]} 50... Rc4+ {[%clk 0:00:11.5]} 51.
Kb5 {[%clk 0:01:36.3]} 51... Rc5+ {[%clk 0:00:12.5]} 52. Kb6 {[%clk 0:01:36.8]}
52... Rc6+ {[%clk 0:00:13.7]} 53. Kxc6 {[%clk 0:01:37.2]} 1/2-1/2

[Event "*** Titled Tuesday Blitz"]
[Site "Chess.com"]
[Date "2019.09.03"]
[Round "7"]
[White "cherryandmint"]
[Black "Thjop"]
[Result "0-1"]
[WhiteElo "2784"]
[BlackElo "2582"]
[TimeControl "180+2"]
[EndTime "16:36:21 PDT"]
[Termination "Thjop won by resignation"]

1. e4 {[%clk 0:03:01.9]} 1... c5 {[%clk 0:02:54.7]} 2. Nf3 {[%clk 0:03:02.2]}
2... Nc6 {[%clk 0:02:43.7]} 3. d4 {[%clk 0:03:02.5]} 3... cxd4 {[%clk
0:02:43.9]} 4. Nxd4 {[%clk 0:03:04.4]} 4... g6 {[%clk 0:02:33.4]} 5. c4 {[%clk
0:03:04.4]} 5... Bg7 {[%clk 0:02:33.5]} 6. Be3 {[%clk 0:03:05.6]} 6... Nf6
{[%clk 0:02:34.3]} 7. Nc3 {[%clk 0:03:06.5]} 7... O-O {[%clk 0:02:34.9]} 8. Be2
{[%clk 0:03:07.7]} 8... d6 {[%clk 0:02:33.4]} 9. O-O {[%clk 0:03:07.9]} 9... a6
{[%clk 0:02:15.7]} 10. f3 {[%clk 0:03:08.1]} 10... Rb8 {[%clk 0:02:04.2]} 11.
Rc1 {[%clk 0:03:04.9]} 11... Bd7 {[%clk 0:01:59.3]} 12. Nb3 {[%clk 0:02:43.2]}
12... Na5 {[%clk 0:01:44]} 13. Nd2 {[%clk 0:02:34.7]} 13... Nc6 {[%clk
0:01:27.1]} 14. b3 {[%clk 0:02:28.1]} 14... Ne5 {[%clk 0:01:21.9]} 15. h3 {[%clk
0:02:25.1]} 15... Nc6 {[%clk 0:01:04.8]} 16. Nd5 {[%clk 0:02:16.9]} 16... Nh5
{[%clk 0:01:02.8]} 17. Qe1 {[%clk 0:02:03.6]} 17... e6 {[%clk 0:01:00.1]} 18.
Nb6 {[%clk 0:01:55]} 18... Bd4 {[%clk 0:00:55.4]} 19. Bxd4 {[%clk 0:01:56.2]}
19... Nxd4 {[%clk 0:00:54.6]} 20. Nxd7 {[%clk 0:01:57.6]} 20... Qxd7 {[%clk
0:00:54.8]} 21. Bd1 {[%clk 0:01:59]} 21... e5 {[%clk 0:00:29.1]} 22. Nb1 {[%clk
0:01:59.9]} 22... b5 {[%clk 0:00:26.8]} 23. cxb5 {[%clk 0:02:00.3]} 23... axb5
{[%clk 0:00:27.9]} 24. b4 {[%clk 0:02:00.2]} 24... Nf4 {[%clk 0:00:27.2]} 25.
Qd2 {[%clk 0:02:00.8]} 25... Qe7 {[%clk 0:00:25.3]} 26. Kh2 {[%clk 0:01:57.8]}
26... Rfc8 {[%clk 0:00:21.8]} 27. Rxc8+ {[%clk 0:01:47.7]} 27... Rxc8 {[%clk
0:00:22.4]} 28. Nc3 {[%clk 0:01:41.1]} 28... Qc7 {[%clk 0:00:21.7]} 29. Nb1
{[%clk 0:01:25.6]} 29... Qc4 {[%clk 0:00:19.7]} 30. Re1 {[%clk 0:01:26.3]} 30...
h5 {[%clk 0:00:19.5]} 31. Bb3 {[%clk 0:01:09.9]} 31... Nxb3 {[%clk 0:00:19.1]}
32. axb3 {[%clk 0:01:11.5]} 32... Qxb3 {[%clk 0:00:18.3]} 33. Qxd6 {[%clk
0:01:04.9]} 33... Rc2 {[%clk 0:00:14.1]} 34. Nd2 {[%clk 0:01:05.9]} 34... Qe6
{[%clk 0:00:12.5]} 35. Qd8+ {[%clk 0:00:52.9]} 35... Kg7 {[%clk 0:00:12]} 36.
Ra1 {[%clk 0:00:52.9]} 36... Qf6 {[%clk 0:00:10.6]} 37. Ra8 {[%clk 0:00:28.8]}
37... Qxd8 {[%clk 0:00:09]} 38. Rxd8 {[%clk 0:00:30.7]} 38... h4 {[%clk
0:00:10.2]} 39. Kg1 {[%clk 0:00:29.4]} 39... Kf6 {[%clk 0:00:10.8]} 40. Kf2
{[%clk 0:00:28.6]} 40... Ke7 {[%clk 0:00:12]} 0-1

[Event "*** Titled Tuesday Blitz"]
[Site "Chess.com"]
[Date "2019.09.03"]
[Round "7"]
[White "platy3"]
[Black "bubacik"]
[Result "0-1"]
[WhiteElo "2862"]
[BlackElo "2744"]
[TimeControl "180+2"]
[EndTime "16:36:26 PDT"]
[Termination "bubacik won by resignation"]

1. e4 {[%clk 0:03:01.9]} 1... e5 {[%clk 0:03:00.4]} 2. Nf3 {[%clk 0:03:01.8]}
2... Nc6 {[%clk 0:03:02.3]} 3. Bb5 {[%clk 0:03:02.7]} 3... a6 {[%clk 0:03:03.6]}
4. Ba4 {[%clk 0:03:03.7]} 4... Nf6 {[%clk 0:03:05.2]} 5. O-O {[%clk 0:03:05.1]}
5... Be7 {[%clk 0:03:01.3]} 6. Re1 {[%clk 0:03:05.7]} 6... b5 {[%clk 0:03:01.8]}
7. Bb3 {[%clk 0:03:07.2]} 7... d6 {[%clk 0:03:03.4]} 8. c3 {[%clk 0:03:08.2]}
8... O-O {[%clk 0:03:04.3]} 9. h3 {[%clk 0:03:09.6]} 9... Nb8 {[%clk 0:03:02.8]}
10. d4 {[%clk 0:03:09.6]} 10... Nbd7 {[%clk 0:03:04.1]} 11. Nbd2 {[%clk
0:03:11.2]} 11... Bb7 {[%clk 0:03:05.1]} 12. Bc2 {[%clk 0:03:12.8]} 12... Re8
{[%clk 0:03:05.7]} 13. Nf1 {[%clk 0:03:14.4]} 13... Bf8 {[%clk 0:03:05.6]} 14.
Ng3 {[%clk 0:03:16]} 14... g6 {[%clk 0:03:06.9]} 15. a4 {[%clk 0:03:17.5]} 15...
Nb6 {[%clk 0:03:05.1]} 16. a5 {[%clk 0:03:14.8]} 16... Nbd7 {[%clk 0:03:05.8]}
17. d5 {[%clk 0:03:15.2]} 17... c6 {[%clk 0:03:04.3]} 18. dxc6 {[%clk
0:03:13.3]} 18... Bxc6 {[%clk 0:03:06.2]} 19. b4 {[%clk 0:03:14.7]} 19... Rc8
{[%clk 0:03:07]} 20. Bb3 {[%clk 0:03:13.1]} 20... h6 {[%clk 0:03:00.8]} 21. Nh4
{[%clk 0:03:01.8]} 21... Kg7 {[%clk 0:02:42.4]} 22. Qd2 {[%clk 0:02:59.7]} 22...
Ng8 {[%clk 0:02:38.3]} 23. Nf3 {[%clk 0:02:38.8]} 23... Be7 {[%clk 0:02:30.8]}
24. Bb2 {[%clk 0:02:34]} 24... Bb7 {[%clk 0:02:30.6]} 25. Rad1 {[%clk
0:02:34.8]} 25... Qc7 {[%clk 0:02:29.7]} 26. h4 {[%clk 0:02:26.8]} 26... Ndf6
{[%clk 0:02:13.9]} 27. h5 {[%clk 0:02:19.8]} 27... Nxh5 {[%clk 0:02:15]} 28.
Nxh5+ {[%clk 0:02:18.1]} 28... gxh5 {[%clk 0:02:16.9]} 29. Qe2 {[%clk
0:01:55.8]} 29... Rf8 {[%clk 0:02:02.4]} 30. Nh2 {[%clk 0:01:40.3]} 30... Nf6
{[%clk 0:02:03.6]} 31. Qf3 {[%clk 0:01:40.3]} 31... Qd7 {[%clk 0:01:59.2]} 32.
Nf1 {[%clk 0:01:40.1]} 32... Qg4 {[%clk 0:01:56.8]} 33. Ne3 {[%clk 0:01:39.7]}
33... Qxf3 {[%clk 0:01:52.5]} 34. gxf3 {[%clk 0:01:40.1]} 34... Rg8 {[%clk
0:01:47.4]} 35. Kf1 {[%clk 0:01:36.5]} 35... Kf8 {[%clk 0:01:48.2]} 36. Nf5
{[%clk 0:01:37.2]} 36... Rc6 {[%clk 0:01:29.3]} 37. Nxh6 {[%clk 0:01:36.2]}
37... Rg6 {[%clk 0:01:14.3]} 38. Nf5 {[%clk 0:01:34.7]} 38... Bc8 {[%clk
0:01:14.6]} 39. Ne3 {[%clk 0:01:25.5]} 39... Be6 {[%clk 0:01:13.8]} 40. Bxe6
{[%clk 0:01:24.4]} 40... fxe6 {[%clk 0:01:15.7]} 41. Ke2 {[%clk 0:01:24.1]}
41... h4 {[%clk 0:01:14.6]} 42. Rg1 {[%clk 0:01:09]} 42... Rxg1 {[%clk
0:01:14.9]} 43. Rxg1 {[%clk 0:01:10.9]} 43... Nh5 {[%clk 0:01:16]} 44. Rh1
{[%clk 0:01:07.3]} 44... Nf4+ {[%clk 0:01:13.3]} 45. Kd2 {[%clk 0:01:08.6]}
45... Kf7 {[%clk 0:01:14.5]} 46. Kc2 {[%clk 0:01:08.8]} 46... d5 {[%clk
0:01:10.9]} 47. exd5 {[%clk 0:01:10]} 47... exd5 {[%clk 0:01:12.8]} 48. Kb3
{[%clk 0:01:04.8]} 48... Ke6 {[%clk 0:01:09.2]} 49. Bc1 {[%clk 0:01:02.9]} 49...
d4 {[%clk 0:00:56.7]} 50. cxd4 {[%clk 0:01:01.9]} 50... exd4 {[%clk 0:00:58.6]}
51. Ng4 {[%clk 0:00:40.3]} 51... Rc3+ {[%clk 0:00:57.6]} 52. Ka2 {[%clk
0:00:41.5]} 52... Nd3 {[%clk 0:00:56.2]} 0-1

[Event "*** Titled Tuesday Blitz"]
[Site "Chess.com"]
[Date "2019.09.03"]
[Round "7"]
[White "chess3054"]
[Black "HouseOfDurin"]
[Result "1-0"]
[WhiteElo "2493"]
[BlackElo "2017"]
[TimeControl "180+2"]
[EndTime "16:36:26 PDT"]
[Termination "chess3054 won by checkmate"]

1. e4 {[%clk 0:02:44.1]} 1... c5 {[%clk 0:03:00.5]} 2. Nf3 {[%clk 0:02:44.7]}
2... Nc6 {[%clk 0:03:01.9]} 3. Bb5 {[%clk 0:02:45.5]} 3... g6 {[%clk 0:03:02.6]}
4. O-O {[%clk 0:02:43.7]} 4... Bg7 {[%clk 0:03:00.1]} 5. Re1 {[%clk 0:02:44.8]}
5... e5 {[%clk 0:03:00.8]} 6. b4 {[%clk 0:02:45]} 6... Nxb4 {[%clk 0:02:50.5]}
7. c3 {[%clk 0:02:45]} 7... Nc6 {[%clk 0:02:49.4]} 8. d4 {[%clk 0:02:42.9]} 8...
cxd4 {[%clk 0:02:25.9]} 9. cxd4 {[%clk 0:02:43]} 9... Nxd4 {[%clk 0:02:18.5]}
10. Nxd4 {[%clk 0:02:37.2]} 10... exd4 {[%clk 0:02:20.4]} 11. Nd2 {[%clk
0:02:24.9]} 11... Ne7 {[%clk 0:02:14.1]} 12. Ba3 {[%clk 0:02:22.2]} 12... a6
{[%clk 0:01:58.6]} 13. Bc4 {[%clk 0:02:15.6]} 13... O-O {[%clk 0:01:58.4]} 14.
Bd6 {[%clk 0:01:57.3]} 14... b5 {[%clk 0:01:56.6]} 15. Bb3 {[%clk 0:01:37.6]}
15... Bb7 {[%clk 0:01:31]} 16. Nf3 {[%clk 0:01:33.2]} 16... h6 {[%clk
0:01:11.2]} 17. Nxd4 {[%clk 0:01:21]} 17... Nc6 {[%clk 0:00:48.2]} 18. e5 {[%clk
0:01:08.1]} 18... Re8 {[%clk 0:00:21.5]} 19. Nxc6 {[%clk 0:00:32.3]} 19... Bxc6
{[%clk 0:00:23.4]} 20. Qd4 {[%clk 0:00:23]} 20... Qg5 {[%clk 0:00:22.1]} 21. f3
{[%clk 0:00:18.2]} 21... Bxf3 {[%clk 0:00:20.2]} 22. Qf2 {[%clk 0:00:18.4]}
22... Bc6 {[%clk 0:00:16.6]} 23. Bxf7+ {[%clk 0:00:18.2]} 23... Kh7 {[%clk
0:00:17.9]} 24. Bxe8 {[%clk 0:00:19.5]} 24... Rxe8 {[%clk 0:00:19.6]} 25. Re3
{[%clk 0:00:18.4]} 25... Bxe5 {[%clk 0:00:06.7]} 26. Bxe5 {[%clk 0:00:19.2]}
26... Rxe5 {[%clk 0:00:07.5]} 27. Rxe5 {[%clk 0:00:21.1]} 27... Qxe5 {[%clk
0:00:08.3]} 28. Re1 {[%clk 0:00:23]} 28... Qg7 {[%clk 0:00:04.7]} 29. Qc5 {[%clk
0:00:23.5]} 29... Kg8 {[%clk 0:00:03.4]} 30. Re8+ {[%clk 0:00:23.3]} 30... Kf7
{[%clk 0:00:02.4]} 31. Re7+ {[%clk 0:00:24.7]} 31... Kg8 {[%clk 0:00:03.4]} 32.
Rxg7+ {[%clk 0:00:25.9]} 32... Kxg7 {[%clk 0:00:05.3]} 33. Qa7 {[%clk
0:00:25.4]} 33... Kf6 {[%clk 0:00:04.2]} 34. Qxa6 {[%clk 0:00:26.7]} 34... h5
{[%clk 0:00:05.7]} 35. Qb6 {[%clk 0:00:27.8]} 35... Kg5 {[%clk 0:00:07.1]} 36.
Kf2 {[%clk 0:00:29.3]} 36... Kh6 {[%clk 0:00:06.5]} 37. g3 {[%clk 0:00:30.5]}
37... g5 {[%clk 0:00:08]} 38. h4 {[%clk 0:00:31.5]} 38... gxh4 {[%clk
0:00:09.1]} 39. gxh4 {[%clk 0:00:33.4]} 39... Kg6 {[%clk 0:00:10.7]} 40. Ke3
{[%clk 0:00:34.7]} 40... Kf5 {[%clk 0:00:12.1]} 41. Qc5+ {[%clk 0:00:35.4]}
41... Kg4 {[%clk 0:00:13]} 42. Qg5+ {[%clk 0:00:36.6]} 42... Kh3 {[%clk
0:00:14.5]} 43. Kf2 {[%clk 0:00:38]} 43... Kh2 {[%clk 0:00:06.4]} 44. Qg3+
{[%clk 0:00:39.4]} 44... Kh1 {[%clk 0:00:07.8]} 45. Qg1# {[%clk 0:00:41.3]} 1-0